[Event "Titled Tuesday Blitz August 17 2021"]
[White "Loy, Konstantin"]
[Black "Dinu, Dumitru-Daniel"]
[WhiteFideId "14122499"]
[BlackFideId "1208403"]
[WhiteElo "2084"]
[BlackElo "2240"]
[Result "1-0"]
[Round "06"]
[TimeControl "180+1"]
[Date "2021.08.18"]
[WhiteClock "0:00:07"]
[BlackClock "0:00:09"]

1. e4 {[%clk 0:02:59]}  c5 {[%clk 0:02:59]} 2. Nf3 {[%clk 0:02:59]}  g6 {[%clk 0:02:59]} 3. d4 {[%clk 0:02:58]}  cxd4 {[%clk 0:02:59]} 4. Nxd4 {[%clk 0:02:59]}  Nc6 {[%clk 0:02:58]} 5. Nc3 {[%clk 0:02:59]}  Bg7 {[%clk 0:02:57]} 6. Be3 {[%clk 0:03:00]}  Nf6 {[%clk 0:02:55]} 7. Bc4 {[%clk 0:03:00]}  O-O {[%clk 0:02:54]} 8. Bb3 {[%clk 0:03:01]}  d5 {[%clk 0:02:54]} 9. exd5 {[%clk 0:02:57]}  Na5 {[%clk 0:02:54]} 10. O-O {[%clk 0:02:52]}  Nxb3 {[%clk 0:02:51]} 11. Nxb3 {[%clk 0:02:52]}  b5 {[%clk 0:02:50]} 12. d6 {[%clk 0:02:18]}  exd6 {[%clk 0:02:41]} 13. Nxb5 {[%clk 0:02:13]}  Ba6 {[%clk 0:02:41]} 14. a4 {[%clk 0:02:09]}  Re8 {[%clk 0:02:06]} 15. Bd4 {[%clk 0:01:52]}  Qd7 {[%clk 0:01:59]} 16. Re1 {[%clk 0:01:33]}  Rxe1+ {[%clk 0:01:55]} 17. Qxe1 {[%clk 0:01:33]}  Bxb5 {[%clk 0:01:52]} 18. axb5 {[%clk 0:01:34]}  Qxb5 {[%clk 0:01:45]} 19. Rxa7 {[%clk 0:01:32]}  Re8 {[%clk 0:01:40]} 20. Re7 {[%clk 0:01:30]}  Rc8 {[%clk 0:01:26]} 21. Re2 {[%clk 0:01:10]}  Nh5 {[%clk 0:01:07]} 22. Bxg7 {[%clk 0:01:08]}  Kxg7 {[%clk 0:01:06]} 23. g3 {[%clk 0:01:07]}  Nf6 {[%clk 0:01:02]} 24. Qd2 {[%clk 0:01:01]}  Kg8 {[%clk 0:00:51]} 25. Qd3 {[%clk 0:00:49]}  Qxd3 {[%clk 0:00:35]} 26. cxd3 {[%clk 0:00:50]}  Nd5 {[%clk 0:00:36]} 27. Nd4 {[%clk 0:00:36]}  Nb4 {[%clk 0:00:33]} 28. Rd2 {[%clk 0:00:34]}  Kg7 {[%clk 0:00:28]} 29. Kg2 {[%clk 0:00:34]}  Kf6 {[%clk 0:00:27]} 30. f4 {[%clk 0:00:23]}  Ke7 {[%clk 0:00:23]} 31. Kf3 {[%clk 0:00:22]}  f5 {[%clk 0:00:22]} 32. h3 {[%clk 0:00:21]}  Rc1 {[%clk 0:00:19]} 33. g4 {[%clk 0:00:20]}  Rf1+ {[%clk 0:00:18]} 34. Kg2 {[%clk 0:00:19]}  Rxf4 {[%clk 0:00:18]} 35. Ne2 {[%clk 0:00:10]}  Nd5 {[%clk 0:00:14]} 36. Nxf4 {[%clk 0:00:09]}  Nxf4+ {[%clk 0:00:14]} 37. Kg3 {[%clk 0:00:10]}  g5 {[%clk 0:00:13]} 38. gxf5 {[%clk 0:00:09]}  Kf6 {[%clk 0:00:13]} 39. b4 {[%clk 0:00:09]}  Kxf5 {[%clk 0:00:13]} 40. b5 {[%clk 0:00:10]}  Nd5 {[%clk 0:00:13]} 41. Rf2+ {[%clk 0:00:10]}  Ke6 {[%clk 0:00:13]} 42. Rc2 {[%clk 0:00:09]}  Kd7 {[%clk 0:00:10]} 43. Ra2 {[%clk 0:00:08]}  Nb6 {[%clk 0:00:09]} 44. Ra7+ {[%clk 0:00:07]}  Ke6 {[%clk 0:00:09]} 45. Rxh7 {[%clk 0:00:08]}  Kd5 {[%clk 0:00:09]} 46. Rh6 {[%clk 0:00:07]}  Kc5 {[%clk 0:00:09]} 47. Kg4 {[%clk 0:00:07]} 1-0


[Site "https://www.chess.com"]

[Event "Titled Tuesday Blitz August 17 2021"]
[White "Maghsoodloo, Parham"]
[Black "Wagner, Dennis"]
[WhiteFideId "12539929"]
[BlackFideId "24650684"]
[WhiteElo "2601"]
[BlackElo "2355"]
[Result "0-1"]
[Round "06"]
[TimeControl "180+1"]
[Date "2021.08.17"]
[WhiteClock "0:00:31"]
[BlackClock "0:00:39"]

1. d4 {[%clk 0:03:00]}  Nf6 {[%clk 0:03:00]} 2. c4 {[%clk 0:03:01]}  e6 {[%clk 0:03:00]} 3. Nf3 {[%clk 0:03:01]}  d5 {[%clk 0:03:01]} 4. g3 {[%clk 0:03:01]}  Bb4+ {[%clk 0:03:01]} 5. Bd2 {[%clk 0:03:01]}  Be7 {[%clk 0:03:01]} 6. Bg2 {[%clk 0:03:02]}  O-O {[%clk 0:03:01]} 7. O-O {[%clk 0:03:02]}  Nbd7 {[%clk 0:03:02]} 8. Qc2 {[%clk 0:03:02]}  c6 {[%clk 0:03:02]} 9. Rc1 {[%clk 0:03:03]}  h6 {[%clk 0:03:01]} 10. a4 {[%clk 0:03:03]}  a5 {[%clk 0:03:00]} 11. Be1 {[%clk 0:03:03]}  Re8 {[%clk 0:03:00]} 12. Nbd2 {[%clk 0:03:04]}  b6 {[%clk 0:02:59]} 13. e4 {[%clk 0:03:04]}  dxe4 {[%clk 0:03:00]} 14. Nxe4 {[%clk 0:03:04]}  Bb7 {[%clk 0:03:00]} 15. Ne5 {[%clk 0:02:58]}  Qc7 {[%clk 0:02:51]} 16. Bc3 {[%clk 0:02:44]}  Nxe5 {[%clk 0:02:42]} 17. dxe5 {[%clk 0:02:43]}  Nxe4 {[%clk 0:02:42]} 18. Qxe4 {[%clk 0:02:12]}  Rab8 {[%clk 0:02:42]} 19. Bd2 {[%clk 0:02:13]}  c5 {[%clk 0:02:38]} 20. Qg4 {[%clk 0:02:13]}  Qxe5 {[%clk 0:02:28]} 21. Bf4 {[%clk 0:02:10]}  Qd4 {[%clk 0:02:13]} 22. Qe2 {[%clk 0:01:46]}  Bxg2 {[%clk 0:02:03]} 23. Bxb8 {[%clk 0:01:46]}  Ba8 {[%clk 0:02:00]} 24. Rd1 {[%clk 0:01:38]}  Qf6 {[%clk 0:01:59]} 25. Be5 {[%clk 0:01:31]}  Qf5 {[%clk 0:01:59]} 26. f4 {[%clk 0:01:23]}  f6 {[%clk 0:01:28]} 27. Bc3 {[%clk 0:01:23]}  Bf8 {[%clk 0:01:25]} 28. Rf1 {[%clk 0:01:17]}  h5 {[%clk 0:01:23]} 29. Rad1 {[%clk 0:01:15]}  h4 {[%clk 0:01:18]} 30. g4 {[%clk 0:01:14]}  Qg6 {[%clk 0:01:18]} 31. h3 {[%clk 0:01:15]}  Qf7 {[%clk 0:01:09]} 32. Kh2 {[%clk 0:01:01]}  Qb7 {[%clk 0:01:05]} 33. Rd2 {[%clk 0:00:58]}  Qc6 {[%clk 0:00:38]} 34. b3 {[%clk 0:00:57]}  Bd6 {[%clk 0:00:38]} 35. g5 {[%clk 0:00:44]}  Bxf4+ {[%clk 0:00:38]} 36. Kg1 {[%clk 0:00:31]}  Qh1+ {[%clk 0:00:38]} 37. Kf2 {[%clk 0:00:31]}  Bg3+ {[%clk 0:00:39]} 38. Ke3 {[%clk 0:00:31]}  Qe4# {[%clk 0:00:39]} 0-1


[Site "https://www.chess.com"]

[Event "Titled Tuesday Blitz August 17 2021"]
[White "Maiorov, Nikita"]
[Black "Kanyamarala, Trisha"]
[WhiteFideId "13501720"]
[BlackFideId "45004722"]
[WhiteElo "2440"]
[BlackElo "2074"]
[Result "0-1"]
[Round "06"]
[TimeControl "180+1"]
[Date "2021.08.17"]
[WhiteClock "0:00:01"]
[BlackClock "0:00:05"]

1. d4 {[%clk 0:03:00]}  Nf6 {[%clk 0:02:54]} 2. c4 {[%clk 0:03:00]}  e6 {[%clk 0:02:54]} 3. Nc3 {[%clk 0:02:58]}  Bb4 {[%clk 0:02:54]} 4. f3 {[%clk 0:02:58]}  d5 {[%clk 0:02:53]} 5. a3 {[%clk 0:02:56]}  Bxc3+ {[%clk 0:02:53]} 6. bxc3 {[%clk 0:02:56]}  c5 {[%clk 0:02:52]} 7. cxd5 {[%clk 0:02:55]}  Nxd5 {[%clk 0:02:53]} 8. dxc5 {[%clk 0:02:54]}  Qa5 {[%clk 0:02:52]} 9. e4 {[%clk 0:02:53]}  Nf6 {[%clk 0:02:51]} 10. Be3 {[%clk 0:02:51]}  O-O {[%clk 0:02:50]} 11. Qb3 {[%clk 0:02:42]}  Na6 {[%clk 0:02:46]} 12. a4 {[%clk 0:02:38]}  Nd7 {[%clk 0:02:40]} 13. Bxa6 {[%clk 0:02:33]}  bxa6 {[%clk 0:02:31]} 14. Qa3 {[%clk 0:02:13]}  Ne5 {[%clk 0:02:31]} 15. Bd4 {[%clk 0:02:04]}  Nd3+ {[%clk 0:02:29]} 16. Kd2 {[%clk 0:02:00]}  Nf4 {[%clk 0:02:20]} 17. g3 {[%clk 0:01:56]}  Ng6 {[%clk 0:02:20]} 18. Ne2 {[%clk 0:01:56]}  Rd8 {[%clk 0:02:19]} 19. Ke1 {[%clk 0:01:52]}  e5 {[%clk 0:02:17]} 20. Be3 {[%clk 0:01:51]}  Be6 {[%clk 0:02:16]} 21. Kf2 {[%clk 0:01:51]}  Ne7 {[%clk 0:02:09]} 22. Rhd1 {[%clk 0:01:42]}  Nc6 {[%clk 0:02:07]} 23. Rd6 {[%clk 0:01:40]}  Qc7 {[%clk 0:02:00]} 24. Rad1 {[%clk 0:01:39]}  Rdb8 {[%clk 0:01:58]} 25. Nc1 {[%clk 0:01:36]}  Na5 {[%clk 0:01:56]} 26. Rxe6 {[%clk 0:01:02]}  fxe6 {[%clk 0:01:54]} 27. Ne2 {[%clk 0:01:01]}  Nc4 {[%clk 0:01:53]} 28. Qa2 {[%clk 0:01:00]}  Nxe3 {[%clk 0:01:53]} 29. Qxe6+ {[%clk 0:00:59]}  Kh8 {[%clk 0:01:47]} 30. Rd3 {[%clk 0:00:42]}  Nc2 {[%clk 0:01:39]} 31. c6 {[%clk 0:00:40]}  Rc8 {[%clk 0:01:29]} 32. Kg1 {[%clk 0:00:33]}  h6 {[%clk 0:01:22]} 33. Kh1 {[%clk 0:00:23]}  Re8 {[%clk 0:01:05]} 34. Qd7 {[%clk 0:00:20]}  Rac8 {[%clk 0:00:58]} 35. Rd6 {[%clk 0:00:19]}  Ne3 {[%clk 0:00:38]} 36. Rg6 {[%clk 0:00:17]}  Rg8 {[%clk 0:00:29]} 37. Qe6 {[%clk 0:00:14]}  Rce8 {[%clk 0:00:19]} 38. Qd7 {[%clk 0:00:08]}  Qxd7 {[%clk 0:00:18]} 39. cxd7 {[%clk 0:00:08]}  Re7 {[%clk 0:00:15]} 40. Rd6 {[%clk 0:00:05]}  Rd8 {[%clk 0:00:15]} 41. Rd3 {[%clk 0:00:04]}  Nc4 {[%clk 0:00:14]} 42. Rd5 {[%clk 0:00:04]}  Rexd7 {[%clk 0:00:13]} 43. Rc5 {[%clk 0:00:04]}  Nb6 {[%clk 0:00:11]} 44. a5 {[%clk 0:00:03]}  Nc8 {[%clk 0:00:08]} 45. Rxe5 {[%clk 0:00:03]}  Nd6 {[%clk 0:00:07]} 46. Rd5 {[%clk 0:00:03]}  Nc4 {[%clk 0:00:07]} 47. Rc5 {[%clk 0:00:02]}  Ne3 {[%clk 0:00:07]} 48. Kg1 {[%clk 0:00:02]}  Rd1+ {[%clk 0:00:06]} 49. Kf2 {[%clk 0:00:02]}  Nc2 {[%clk 0:00:05]} 50. f4 {[%clk 0:00:01]}  Re1 {[%clk 0:00:05]} 51. e5 {[%clk 0:00:01]}  Rd2 {[%clk 0:00:05]} 0-1


[Site "https://www.chess.com"]

[Event "Titled Tuesday Blitz August 17 2021"]
[White "Martin Carmona, Gaston Manuel"]
[Black "Rosenberg, Evan S"]
[WhiteFideId "22284567"]
[BlackFideId "2019299"]
[WhiteElo "2161"]
[BlackElo "2275"]
[Result "0-1"]
[Round "06"]
[TimeControl "180+1"]
[Date "2021.08.18"]
[WhiteClock "0:00:42"]
[BlackClock "0:00:04"]

1. e4 {[%clk 0:03:00]}  c6 {[%clk 0:02:57]} 2. d4 {[%clk 0:03:00]}  d5 {[%clk 0:02:56]} 3. Nd2 {[%clk 0:03:01]}  dxe4 {[%clk 0:02:56]} 4. Nxe4 {[%clk 0:03:02]}  Nf6 {[%clk 0:02:56]} 5. Nxf6+ {[%clk 0:03:02]}  exf6 {[%clk 0:02:57]} 6. c3 {[%clk 0:03:02]}  Bd6 {[%clk 0:02:57]} 7. Bd3 {[%clk 0:03:02]}  O-O {[%clk 0:02:57]} 8. Qc2 {[%clk 0:03:03]}  Re8+ {[%clk 0:02:57]} 9. Ne2 {[%clk 0:03:04]}  h5 {[%clk 0:02:57]} 10. Be3 {[%clk 0:03:03]}  h4 {[%clk 0:02:44]} 11. O-O-O {[%clk 0:02:59]}  Qa5 {[%clk 0:02:32]} 12. Kb1 {[%clk 0:02:57]}  Be6 {[%clk 0:02:24]} 13. c4 {[%clk 0:02:49]}  b5 {[%clk 0:02:19]} 14. d5 {[%clk 0:02:49]}  Bg4 {[%clk 0:01:18]} 15. c5 {[%clk 0:02:39]}  Be5 {[%clk 0:01:01]} 16. Bh7+ {[%clk 0:02:26]}  Kh8 {[%clk 0:01:01]} 17. Bf5 {[%clk 0:02:27]}  Bxf5 {[%clk 0:00:46]} 18. Qxf5 {[%clk 0:02:28]}  g6 {[%clk 0:00:46]} 19. Qg4 {[%clk 0:02:23]}  Qa4 {[%clk 0:00:36]} 20. Bd4 {[%clk 0:02:01]}  Kg7 {[%clk 0:00:25]} 21. Qxh4 {[%clk 0:01:57]}  Na6 {[%clk 0:00:19]} 22. Nc3 {[%clk 0:01:42]}  Qc4 {[%clk 0:00:15]} 23. g3 {[%clk 0:01:38]}  b4 {[%clk 0:00:13]} 24. Bxe5 {[%clk 0:01:31]}  Qxh4 {[%clk 0:00:11]} 25. gxh4 {[%clk 0:01:31]}  fxe5 {[%clk 0:00:11]} 26. Ne4 {[%clk 0:01:30]}  cxd5 {[%clk 0:00:11]} 27. Rxd5 {[%clk 0:01:31]}  Rad8 {[%clk 0:00:09]} 28. Rhd1 {[%clk 0:01:29]}  Rxd5 {[%clk 0:00:09]} 29. Rxd5 {[%clk 0:01:30]}  f5 {[%clk 0:00:10]} 30. Rd7+ {[%clk 0:01:28]}  Kh6 {[%clk 0:00:10]} 31. Ng5 {[%clk 0:01:27]}  Kh5 {[%clk 0:00:08]} 32. Rh7+ {[%clk 0:01:21]}  Kg4 {[%clk 0:00:08]} 33. f3+ {[%clk 0:01:22]}  Kf4 {[%clk 0:00:08]} 34. Rxa7 {[%clk 0:01:17]}  Nxc5 {[%clk 0:00:08]} 35. Rc7 {[%clk 0:01:18]}  Nd3 {[%clk 0:00:07]} 36. Rc4+ {[%clk 0:01:13]}  e4 {[%clk 0:00:07]} 37. fxe4 {[%clk 0:01:13]}  fxe4 {[%clk 0:00:07]} 38. a4 {[%clk 0:01:09]}  Kf5 {[%clk 0:00:06]} 39. Kc2 {[%clk 0:01:04]}  Ne1+ {[%clk 0:00:05]} 40. Kd1 {[%clk 0:01:04]}  Nf3 {[%clk 0:00:04]} 41. Nh3 {[%clk 0:00:54]}  Rd8+ {[%clk 0:00:04]} 42. Ke2 {[%clk 0:00:52]}  Rd2+ {[%clk 0:00:03]} 43. Ke3 {[%clk 0:00:50]}  Rxb2 {[%clk 0:00:03]} 44. Nf2 {[%clk 0:00:46]}  Rb3+ {[%clk 0:00:03]} 45. Ke2 {[%clk 0:00:46]}  Rb2+ {[%clk 0:00:03]} 46. Kf1 {[%clk 0:00:43]}  Nd2+ {[%clk 0:00:03]} 47. Kg1 {[%clk 0:00:42]}  Nxc4 {[%clk 0:00:04]} 0-1


[Site "https://www.chess.com"]

[Event "Titled Tuesday Blitz August 17 2021"]
[White "Matinian, Nikita"]
[Black "Mogirzan, Matei-Valeriu"]
[WhiteFideId "24129100"]
[BlackFideId "1257455"]
[WhiteElo "2410"]
[BlackElo "1733"]
[Result "1-0"]
[Round "06"]
[TimeControl "180+1"]
[Date "2021.08.17"]
[WhiteClock "0:00:45"]
[BlackClock "0:00:02"]

1. e4 {[%clk 0:03:00]}  e5 {[%clk 0:02:59]} 2. Nf3 {[%clk 0:03:00]}  Nf6 {[%clk 0:02:59]} 3. Nxe5 {[%clk 0:02:59]}  Nc6 {[%clk 0:02:59]} 4. Nxc6 {[%clk 0:02:57]}  dxc6 {[%clk 0:03:00]} 5. Nc3 {[%clk 0:02:58]}  Bc5 {[%clk 0:03:00]} 6. d4 {[%clk 0:02:37]}  Bxd4 {[%clk 0:02:57]} 7. Be3 {[%clk 0:02:29]}  Bxc3+ {[%clk 0:02:52]} 8. bxc3 {[%clk 0:02:27]}  Qxd1+ {[%clk 0:02:52]} 9. Rxd1 {[%clk 0:02:28]}  Nxe4 {[%clk 0:02:52]} 10. c4 {[%clk 0:02:08]}  Be6 {[%clk 0:02:42]} 11. Bd3 {[%clk 0:02:08]}  Nd6 {[%clk 0:02:31]} 12. c5 {[%clk 0:02:05]}  Nf5 {[%clk 0:02:22]} 13. Bf4 {[%clk 0:01:56]}  O-O-O {[%clk 0:01:33]} 14. O-O {[%clk 0:01:55]}  Nd4 {[%clk 0:01:20]} 15. Rfe1 {[%clk 0:01:52]}  Rhe8 {[%clk 0:01:12]} 16. Be5 {[%clk 0:01:51]}  f6 {[%clk 0:01:11]} 17. Bxd4 {[%clk 0:01:46]}  Rxd4 {[%clk 0:01:11]} 18. Bxh7 {[%clk 0:01:45]}  Rxd1 {[%clk 0:01:09]} 19. Rxd1 {[%clk 0:01:46]}  Bxa2 {[%clk 0:01:02]} 20. Bf5+ {[%clk 0:01:42]}  Be6 {[%clk 0:00:50]} 21. Bg6 {[%clk 0:01:38]}  Rd8 {[%clk 0:00:46]} 22. Re1 {[%clk 0:01:38]}  Bc4 {[%clk 0:00:32]} 23. h4 {[%clk 0:01:33]}  b6 {[%clk 0:00:30]} 24. Re7 {[%clk 0:01:29]}  a5 {[%clk 0:00:18]} 25. Rxg7 {[%clk 0:01:26]}  a4 {[%clk 0:00:16]} 26. Bf5+ {[%clk 0:01:26]}  Kb8 {[%clk 0:00:15]} 27. cxb6 {[%clk 0:01:15]}  cxb6 {[%clk 0:00:14]} 28. Rg3 {[%clk 0:01:16]}  Rh8 {[%clk 0:00:10]} 29. Rh3 {[%clk 0:01:08]}  b5 {[%clk 0:00:09]} 30. h5 {[%clk 0:00:55]}  Bd5 {[%clk 0:00:02]} 31. h6 {[%clk 0:00:48]}  b4 {[%clk 0:00:02]} 32. c4 {[%clk 0:00:49]}  Bxc4 {[%clk 0:00:01]} 33. Rh4 {[%clk 0:00:47]}  Bb5 {[%clk 0:00:01]} 34. h7 {[%clk 0:00:45]}  b3 {[%clk 0:00:01]} 35. Rg4 {[%clk 0:00:44]}  a3 {[%clk 0:00:01]} 36. Rg8+ {[%clk 0:00:44]}  Kb7 {[%clk 0:00:01]} 37. Rxh8 {[%clk 0:00:44]}  a2 {[%clk 0:00:02]} 38. Rb8+ {[%clk 0:00:45]}  Ka6 {[%clk 0:00:02]} 39. Ra8+ {[%clk 0:00:45]}  Kb7 {[%clk 0:00:02]} 40. h8=Q {[%clk 0:00:45]}  b2 {[%clk 0:00:02]} 41. Qb8# {[%clk 0:00:45]} 1-0


[Site "https://www.chess.com"]

[Event "Titled Tuesday Blitz August 17 2021"]
[White "Mikhnenko, Alexander"]
[Black "Florescu, Codrut-Constantin"]
[WhiteFideId "34143014"]
[BlackFideId "1202200"]
[WhiteElo "2135"]
[BlackElo "2243"]
[Result "1-0"]
[Round "06"]
[TimeControl "180+1"]
[Date "2021.08.18"]
[WhiteClock "0:00:06"]
[BlackClock "0:00:06"]

1. d4 {[%clk 0:02:59]}  Nf6 {[%clk 0:02:59]} 2. Bg5 {[%clk 0:02:56]}  e6 {[%clk 0:02:59]} 3. Nd2 {[%clk 0:02:54]}  h6 {[%clk 0:02:59]} 4. Bh4 {[%clk 0:02:52]}  d5 {[%clk 0:02:58]} 5. e3 {[%clk 0:02:35]}  c5 {[%clk 0:02:59]} 6. dxc5 {[%clk 0:02:34]}  Bxc5 {[%clk 0:02:57]} 7. Ngf3 {[%clk 0:02:33]}  Nc6 {[%clk 0:02:56]} 8. a3 {[%clk 0:02:30]}  O-O {[%clk 0:02:55]} 9. b4 {[%clk 0:02:21]}  Be7 {[%clk 0:02:55]} 10. b5 {[%clk 0:02:09]}  Nb8 {[%clk 0:02:52]} 11. c4 {[%clk 0:02:09]}  Nbd7 {[%clk 0:02:52]} 12. Bd3 {[%clk 0:02:05]}  Nc5 {[%clk 0:02:51]} 13. Be2 {[%clk 0:02:04]}  b6 {[%clk 0:02:50]} 14. O-O {[%clk 0:02:03]}  Bb7 {[%clk 0:02:50]} 15. cxd5 {[%clk 0:02:01]}  Nxd5 {[%clk 0:02:48]} 16. Bxe7 {[%clk 0:01:54]}  Qxe7 {[%clk 0:02:49]} 17. Nc4 {[%clk 0:01:50]}  Nc3 {[%clk 0:02:45]} 18. Qc2 {[%clk 0:01:47]}  Nxe2+ {[%clk 0:02:45]} 19. Qxe2 {[%clk 0:01:48]}  Rad8 {[%clk 0:02:42]} 20. a4 {[%clk 0:01:40]}  Be4 {[%clk 0:02:25]} 21. Rfc1 {[%clk 0:01:27]}  Nb3 {[%clk 0:02:23]} 22. Nd4 {[%clk 0:01:18]}  Nxc1 {[%clk 0:02:18]} 23. Rxc1 {[%clk 0:01:19]}  Rc8 {[%clk 0:02:18]} 24. Re1 {[%clk 0:01:04]}  Bd5 {[%clk 0:02:10]} 25. Ne5 {[%clk 0:01:04]}  Qa3 {[%clk 0:02:06]} 26. Nec6 {[%clk 0:01:03]}  Bxc6 {[%clk 0:02:02]} 27. Nxc6 {[%clk 0:01:04]}  Rc7 {[%clk 0:02:01]} 28. Qc2 {[%clk 0:01:03]}  Rd7 {[%clk 0:01:58]} 29. h3 {[%clk 0:00:57]}  Kh8 {[%clk 0:01:44]} 30. e4 {[%clk 0:00:57]}  Qd6 {[%clk 0:01:37]} 31. Qc4 {[%clk 0:00:45]}  Ra8 {[%clk 0:01:30]} 32. Re3 {[%clk 0:00:44]}  Rc8 {[%clk 0:01:19]} 33. Rg3 {[%clk 0:00:44]}  f6 {[%clk 0:01:14]} 34. Kh2 {[%clk 0:00:41]}  a6 {[%clk 0:01:08]} 35. Qc3 {[%clk 0:00:34]}  axb5 {[%clk 0:01:06]} 36. axb5 {[%clk 0:00:35]}  e5 {[%clk 0:01:02]} 37. Qc4 {[%clk 0:00:30]}  Ra8 {[%clk 0:01:00]} 38. Qe2 {[%clk 0:00:27]}  Ra1 {[%clk 0:00:57]} 39. Qh5 {[%clk 0:00:21]}  Qf8 {[%clk 0:00:42]} 40. Rg6 {[%clk 0:00:19]}  Rdd1 {[%clk 0:00:41]} 41. Kg3 {[%clk 0:00:16]}  Qa3+ {[%clk 0:00:37]} 42. f3 {[%clk 0:00:15]}  Qf8 {[%clk 0:00:36]} 43. Qf5 {[%clk 0:00:08]}  Rd2 {[%clk 0:00:34]} 44. Kh4 {[%clk 0:00:06]}  Raa2 {[%clk 0:00:32]} 45. g4 {[%clk 0:00:04]}  Rd3 {[%clk 0:00:31]} 46. Kh5 {[%clk 0:00:03]}  Raa3 {[%clk 0:00:30]} 47. h4 {[%clk 0:00:03]}  Rxf3 {[%clk 0:00:30]} 48. Qe6 {[%clk 0:00:02]}  Rfd3 {[%clk 0:00:30]} 49. Ne7 {[%clk 0:00:03]}  Ra7 {[%clk 0:00:26]} 50. Rxh6+ {[%clk 0:00:03]}  gxh6 {[%clk 0:00:25]} 51. Ng6+ {[%clk 0:00:04]}  Kg7 {[%clk 0:00:25]} 52. Nxf8 {[%clk 0:00:04]}  Kxf8 {[%clk 0:00:20]} 53. Qxf6+ {[%clk 0:00:04]}  Rf7 {[%clk 0:00:20]} 54. Qh8+ {[%clk 0:00:04]}  Ke7 {[%clk 0:00:20]} 55. Qxe5+ {[%clk 0:00:04]}  Kd7 {[%clk 0:00:20]} 56. Kg6 {[%clk 0:00:03]}  Re7 {[%clk 0:00:19]} 57. Qh8 {[%clk 0:00:02]}  Rd6+ {[%clk 0:00:18]} 58. Kh5 {[%clk 0:00:02]}  Rxe4 {[%clk 0:00:17]} 59. g5 {[%clk 0:00:02]}  hxg5 {[%clk 0:00:15]} 60. hxg5 {[%clk 0:00:03]}  Rd5 {[%clk 0:00:16]} 61. Qg7+ {[%clk 0:00:04]}  Re7 {[%clk 0:00:16]} 62. Qf6 {[%clk 0:00:05]}  Ree5 {[%clk 0:00:16]} 63. Qc6+ {[%clk 0:00:05]}  Ke7 {[%clk 0:00:15]} 64. Qc7+ {[%clk 0:00:05]}  Ke6 {[%clk 0:00:16]} 65. Qc6+ {[%clk 0:00:05]}  Ke7 {[%clk 0:00:16]} 66. Qc7+ {[%clk 0:00:06]}  Ke6 {[%clk 0:00:16]} 67. Qxb6+ {[%clk 0:00:07]}  Rd6 {[%clk 0:00:17]} 68. Qb7 {[%clk 0:00:05]}  Kf5 {[%clk 0:00:17]} 69. Qc8+ {[%clk 0:00:06]}  Ke4 {[%clk 0:00:16]} 70. Qg4+ {[%clk 0:00:06]}  Kd5 {[%clk 0:00:16]} 71. Qf3+ {[%clk 0:00:05]}  Kc5 {[%clk 0:00:16]} 72. b6 {[%clk 0:00:05]}  Kxb6 {[%clk 0:00:13]} 73. Qf2+ {[%clk 0:00:06]}  Kc6 {[%clk 0:00:13]} 74. Qc2+ {[%clk 0:00:06]}  Rc5 {[%clk 0:00:13]} 75. Qg2+ {[%clk 0:00:06]}  Rdd5 {[%clk 0:00:13]} 76. Kh6 {[%clk 0:00:05]}  Kc7 {[%clk 0:00:13]} 77. g6 {[%clk 0:00:05]}  Rd6 {[%clk 0:00:14]} 78. Kh7 {[%clk 0:00:05]}  Rcc6 {[%clk 0:00:13]} 79. g7 {[%clk 0:00:05]}  Rh6+ {[%clk 0:00:13]} 80. Kg8 {[%clk 0:00:06]}  Kb6 {[%clk 0:00:14]} 81. Qf2+ {[%clk 0:00:06]}  Kc7 {[%clk 0:00:13]} 82. Kf7 {[%clk 0:00:06]}  Rh7 {[%clk 0:00:12]} 83. Kf8 {[%clk 0:00:06]}  Rg6 {[%clk 0:00:08]} 84. Qf4+ {[%clk 0:00:04]}  Kd7 {[%clk 0:00:07]} 85. Qf5+ {[%clk 0:00:04]}  Re6 {[%clk 0:00:07]} 86. Qxh7 {[%clk 0:00:05]}  Kd8 {[%clk 0:00:07]} 87. Kf7 {[%clk 0:00:05]}  Re7+ {[%clk 0:00:07]} 88. Kf6 {[%clk 0:00:05]}  Kd7 {[%clk 0:00:07]} 89. g8=Q {[%clk 0:00:06]}  Rxh7 {[%clk 0:00:05]} 90. Qxh7+ {[%clk 0:00:06]}  Kd6 {[%clk 0:00:06]} 91. Qe7+ {[%clk 0:00:06]} 1-0


[Site "https://www.chess.com"]

[Event "Titled Tuesday Blitz August 17 2021"]
[White "Mirzoev, Azer"]
[Black "Sengupta, Deep"]
[WhiteFideId "13400304"]
[BlackFideId "5008352"]
[WhiteElo "2525"]
[BlackElo "2347"]
[Result "1-0"]
[Round "06"]
[TimeControl "180+1"]
[Date "2021.08.17"]
[WhiteClock "0:00:24"]
[BlackClock "0:00:05"]

1. d4 {[%clk 0:02:58]}  e6 {[%clk 0:02:57]} 2. Nf3 {[%clk 0:02:58]}  b6 {[%clk 0:02:57]} 3. Bf4 {[%clk 0:02:58]}  Bb7 {[%clk 0:02:57]} 4. e3 {[%clk 0:02:58]}  f5 {[%clk 0:02:56]} 5. h3 {[%clk 0:02:57]}  Nf6 {[%clk 0:02:57]} 6. Bh2 {[%clk 0:02:57]}  g6 {[%clk 0:02:51]} 7. Be2 {[%clk 0:02:57]}  Bg7 {[%clk 0:02:52]} 8. O-O {[%clk 0:02:58]}  O-O {[%clk 0:02:52]} 9. c4 {[%clk 0:02:58]}  d6 {[%clk 0:02:51]} 10. Nc3 {[%clk 0:02:59]}  Nbd7 {[%clk 0:02:50]} 11. Rc1 {[%clk 0:02:57]}  Qe7 {[%clk 0:02:49]} 12. Nb5 {[%clk 0:02:52]}  Rfc8 {[%clk 0:02:47]} 13. b4 {[%clk 0:02:51]}  Ne4 {[%clk 0:02:42]} 14. Nd2 {[%clk 0:02:50]}  a6 {[%clk 0:02:20]} 15. Nc3 {[%clk 0:02:48]}  Nxc3 {[%clk 0:02:18]} 16. Rxc3 {[%clk 0:02:49]}  a5 {[%clk 0:02:18]} 17. a3 {[%clk 0:02:48]}  axb4 {[%clk 0:02:13]} 18. axb4 {[%clk 0:02:48]}  c5 {[%clk 0:02:13]} 19. bxc5 {[%clk 0:02:42]}  dxc5 {[%clk 0:02:13]} 20. Nf3 {[%clk 0:02:36]}  Be4 {[%clk 0:02:05]} 21. Rb3 {[%clk 0:02:31]}  cxd4 {[%clk 0:01:58]} 22. exd4 {[%clk 0:02:22]}  Ra3 {[%clk 0:01:52]} 23. Rxa3 {[%clk 0:02:18]}  Qxa3 {[%clk 0:01:51]} 24. Ng5 {[%clk 0:02:18]}  Nf8 {[%clk 0:01:42]} 25. Nxe4 {[%clk 0:02:10]}  fxe4 {[%clk 0:01:42]} 26. d5 {[%clk 0:02:10]}  e3 {[%clk 0:01:22]} 27. fxe3 {[%clk 0:02:02]}  Qxe3+ {[%clk 0:01:22]} 28. Kh1 {[%clk 0:02:02]}  Be5 {[%clk 0:01:07]} 29. Bg1 {[%clk 0:02:01]}  Qg3 {[%clk 0:01:03]} 30. Rf3 {[%clk 0:01:58]}  Qh4 {[%clk 0:01:01]} 31. dxe6 {[%clk 0:01:56]}  Rd8 {[%clk 0:00:59]} 32. Qb3 {[%clk 0:01:50]}  Qe7 {[%clk 0:00:55]} 33. Bxb6 {[%clk 0:01:34]}  Rd2 {[%clk 0:00:52]} 34. Qe3 {[%clk 0:01:33]}  Rb2 {[%clk 0:00:34]} 35. Qxe5 {[%clk 0:01:29]}  Rxb6 {[%clk 0:00:33]} 36. c5 {[%clk 0:01:14]}  Rc6 {[%clk 0:00:33]} 37. Bc4 {[%clk 0:00:57]}  Nxe6 {[%clk 0:00:12]} 38. Rf6 {[%clk 0:00:39]}  Rxc5 {[%clk 0:00:08]} 39. Bxe6+ {[%clk 0:00:35]}  Kg7 {[%clk 0:00:04]} 40. Rf7+ {[%clk 0:00:35]}  Kh6 {[%clk 0:00:04]} 41. Qf4+ {[%clk 0:00:25]}  Qg5 {[%clk 0:00:05]} 42. Qxg5+ {[%clk 0:00:24]}  Rxg5 {[%clk 0:00:05]} 43. Bg4 {[%clk 0:00:24]} 1-0


[Site "https://www.chess.com"]